fUSD/lending_fUSD_20250221
["ID","MTS","AMOUNT","RATE_DAILY","PERIOD"]
[353974232,1740171049914,-1037.34,0.00011286,2]
[353974233,1740171049924,-500.0,0.00011286,2]
[353974234,1740171049934,-500.0,0.00011286,2]
[353974235,1740171049944,-500.0,0.00011286,2]
[353974236,1740171049954,-698.57,0.00011286,2]
[353974237,1740171049964,-1368.34,0.00011286,2]
[353974238,1740171049975,-500.0,0.00011286,2]
[353974239,1740171049985,-697.57,0.00011286,2]
[353974240,1740171049996,-500.0,0.00011286,2]
[353974241,1740171050011,-1063.71,0.00011286,2]
[353974242,1740171050022,-500.0,0.00011286,2]
[353974243,1740171050032,-1210.76,0.00011286,2]
[353974244,1740171050042,-916.99,0.00011286,2]
[353974245,1740171050053,-737.32,0.00011286,2]
[353974246,1740171050062,-500.0,0.00011286,2]
[353974247,1740171050072,-1114.97,0.00011286,2]
[353974248,1740171050084,-500.0,0.00011286,2]
[353974249,1740171050094,-841.42,0.00011286,2]
[353974250,1740171050104,-500.0,0.00011286,2]
[353974251,1740171050113,-2085.19,0.00011286,2]
[353974252,1740171050123,-500.0,0.00011286,2]
[353974253,1740171050132,-1025.17,0.00011286,2]
[353974254,1740171050141,-500.0,0.00011286,2]
[353974255,1740171050150,-1253.06,0.00011286,2]
[353974256,1740171050159,-500.0,0.00011286,2]
[353974257,1740171050169,-725.46,0.00011286,2]
[353974258,1740171050178,-828.59,0.00011286,2]
[353974259,1740171050188,-1071.25,0.00011286,2]
[353974260,1740171050197,-663.69,0.00011286,2]
[353974261,1740171050206,-1377.64,0.00011286,2]
[353974262,1740171050216,-500.0,0.00011286,2]
[353974263,1740171050225,-500.0,0.00011286,2]
[353974264,1740171050236,-540.68,0.00011286,2]
[353974265,1740171050245,-500.0,0.00011286,2]
[353974266,1740171050254,-500.0,0.00011286,2]
[353974267,1740171050263,-500.0,0.00011286,2]
[353974268,1740171050273,-500.0,0.00011287,2]
[353974269,1740171050282,-500.0,0.00011287,2]
[353974270,1740171050291,-948.42,0.00011287,2]
[353974271,1740171050300,-500.0,0.00011287,2]
[353974272,1740171050310,-500.0,0.00011287,2]
[353974273,1740171050319,-500.0,0.00011287,2]
[353974274,1740171050328,-548.39,0.00011287,2]
[353974275,1740171050337,-500.0,0.00011287,2]
[353974276,1740171050347,-500.0,0.00011287,2]
[353974277,1740171050356,-500.0,0.00011287,2]
[353974278,1740171050365,-127.21538123,0.00011287,2]
[353974279,1740171050399,-313.08807474,0.00011204,2]
[353974280,1740171050410,-186.91192526,0.00011204,2]
[353974281,1740171050419,-118.99875652,0.00011287,2]
[353974282,1740171050430,-253.78586225,0.00011287,2]
[353974283,1740171050440,-2.83650466,0.00011287,2]
[353974284,1740171050452,-497.16349534,0.00011287,2]
[353974285,1740171050461,-500.0,0.00011287,2]
[353974286,1740171050470,-500.0,0.00011287,2]
[353974287,1740171050479,-500.0,0.00011287,2]
[353974288,1740171050488,-338.57270466,0.00011287,2]
[353974289,1740171050499,-161.42729534,0.00011287,2]
[353974290,1740171050925,-500.0,0.00011287,2]
[353974291,1740171050943,-480.37270466,0.00011287,2]
[353974292,1740171050963,-19.62729534,0.00011287,2]
[353974293,1740171050972,-500.0,0.00011287,2]
[353974294,1740171050983,-500.0,0.00011287,2]
[353974295,1740171050992,-137.66731046,0.00011287,2]
[353974296,1740171051004,-362.33268954,0.00011287,2]
[353974297,1740171051016,-500.0,0.00011287,2]
[353974298,1740171051026,-509.14,0.00011287,2]
[353974299,1740171051034,-245.61427088,0.00011287,2]
[353974300,1740171051045,-254.38572912,0.00011287,2]
[353974301,1740171051055,-500.0,0.00011287,2]
[353974302,1740171051064,-88.5394202,0.00011287,2]
[353974303,1740171051074,-436.776,0.00011287,2]
[353974304,1740171051086,-6.7145798,0.00011287,2]
[353974305,1740171051095,-500.0,0.00011287,2]
[353974306,1740171051104,-332.3144162,0.00011287,2]
[353974307,1740171051115,-167.6855838,0.00011287,2]
[353974308,1740171051124,-309.3644162,0.00011287,2]
[353974309,1740171051138,-586.1755838,0.00011287,2]
[353974310,1740171051147,-500.0,0.00011287,2]
[353974311,1740171051156,-500.0,0.00011287,2]
[353974312,1740171051165,-723.86,0.00011287,2]
[353974313,1740171051174,-500.0,0.00011287,2]
[353974314,1740171051183,-47.4644162,0.00011287,2]
[353974315,1740171051194,-452.5355838,0.00011287,2]
[353974316,1740171051203,-569.43,0.00011287,2]
[353974317,1740171051211,-57.96620484,0.00011287,2]
[353974318,1740171051605,-500.0,0.00011038,2]
[353974319,1740171051614,-500.0,0.00011038,2]
[353974320,1740171051623,-500.0,0.00011038,2]
[353974321,1740171051633,-500.0,0.00011039,2]
[353974322,1740171051642,-500.0,0.00011039,2]
[353974323,1740171051651,-500.0,0.0001112,2]
[353974324,1740171051659,-500.0,0.0001112,2]
[353974325,1740171051669,-500.0,0.00011121,2]
[353974326,1740171051679,-506.26863499,0.00011121,2]
[353974327,1740171051688,-500.0,0.00011203,2]
[353974328,1740171051697,-500.0,0.00011203,2]
[353974329,1740171051707,-500.0,0.00011204,2]
[353974330,1740171051716,-500.0,0.00011285,2]
[353974331,1740171051725,-532.71,0.00011286,2]
[353974332,1740171051736,-663.93379516,0.00011287,2]
[353974333,1740171051746,-604.3,0.00011287,2]
[353974334,1740171051755,-500.0,0.00011287,2]
[353974335,1740171051764,-796.7,0.00011287,2]
[353974336,1740171051774,-500.0,0.00011287,2]
[353974337,1740171051783,-500.0,0.00011287,2]
[353974338,1740171051792,-570.06,0.00011287,2]
[353974339,1740171051801,-548.12,0.00011287,2]
[353974340,1740171051811,-547.69,0.00011287,2]
[353974341,1740171051820,-500.0,0.00011287,2]
[353974342,1740171051829,-682.11,0.00011287,2]
[353974343,1740171051839,-500.0,0.00011287,2]
[353974344,1740171051848,-530.17,0.00011287,2]
[353974345,1740171051858,-500.0,0.00011287,2]
[353974346,1740171051867,-595.9,0.00011287,2]
[353974347,1740171051877,-500.0,0.00011287,2]
[353974348,1740171051886,-500.0,0.00011287,2]
[353974349,1740171051896,-500.0,0.00011287,2]
[353974350,1740171051905,-608.63,0.00011287,2]
[353974351,1740171051914,-500.0,0.00011287,2]
[353974352,1740171051924,-500.0,0.00011287,2]
[353974353,1740171051933,-500.0,0.00011287,2]
[353974354,1740171051943,-500.0,0.00011287,2]
[353974355,1740171051953,-528.72,0.00011287,2]
[353974356,1740171051962,-500.0,0.00011287,2]
[353974357,1740171051971,-500.0,0.00011287,2]
[353974358,1740171051981,-500.0,0.00011287,2]
[353974359,1740171051990,-500.0,0.00011287,2]
[353974360,1740171052001,-500.0,0.00011287,2]
[353974361,1740171052015,-500.0,0.00011287,2]
[353974362,1740171052024,-596.32,0.00011287,2]
[353974363,1740171052033,-500.0,0.00011287,2]
[353974364,1740171052045,-608.08,0.00011287,2]
[353974365,1740171052054,-500.0,0.00011287,2]
[353974366,1740171052063,-500.0,0.00011287,2]
[353974367,1740171052073,-500.0,0.00011287,2]
[353974368,1740171052082,-500.0,0.00011287,2]
[353974369,1740171052092,-175.36792492,0.00011287,2]
[353974370,1740171052101,-725.21,0.00011287,2]
[353974371,1740171052110,-500.0,0.00011287,2]
[353974372,1740171052119,-736.61,0.00011287,2]
[353974373,1740171052129,-500.0,0.00011287,2]
[353974374,1740171052139,-500.0,0.00011287,2]
[353974375,1740171052148,-500.0,0.00011287,2]
[353974376,1740171052158,-500.0,0.00011287,2]
[353974377,1740171052167,-500.0,0.00011287,2]
[353974378,1740171052177,-500.0,0.00011287,2]
[353974379,1740171052186,-500.0,0.00011287,2]
[353974380,1740171052196,-500.0,0.00011287,2]
[353974381,1740171052205,-595.1,0.00011287,2]
[353974382,1740171052214,-500.0,0.00011287,2]
[353974383,1740171052224,-500.0,0.00011287,2]
[353974384,1740171052233,-597.25,0.00011287,2]
[353974385,1740171052243,-500.0,0.00011287,2]
[353974386,1740171052252,-500.0,0.00011287,2]
[353974387,1740171052261,-789.82,0.00011287,2]
[353974388,1740171052270,-500.0,0.00011287,2]
[353974389,1740171052279,-820.97,0.00011287,2]
[353974390,1740171052289,-500.0,0.00011287,2]
[353974391,1740171052298,-500.0,0.00011287,2]
[353974392,1740171052308,-500.0,0.00011287,2]
[353974393,1740171052317,-638.4,0.00011287,2]
[353974394,1740171052327,-500.0,0.00011287,2]
[353974395,1740171052336,-500.0,0.00011287,2]
[353974396,1740171052345,-602.07,0.00011287,2]
[353974397,1740171052355,-534.75,0.00011287,2]
[353974398,1740171052364,-591.74,0.00011287,2]
[353974399,1740171052373,-500.0,0.00011287,2]
[353974400,1740171052383,-594.45,0.00011287,2]
[353974401,1740171052392,-556.78,0.00011287,2]
[353974402,1740171052401,-543.99,0.00011287,2]
[353974403,1740171052411,-500.0,0.00011287,2]
[353974404,1740171052421,-500.0,0.00011287,2]
[353974405,1740171052430,-500.0,0.00011287,2]
[353974406,1740171052441,-561.34,0.00011287,2]
[353974407,1740171052451,-656.67,0.00011287,2]
[353974408,1740171052461,-500.0,0.00011287,2]
[353974409,1740171052471,-500.0,0.00011287,2]
[353974410,1740171052481,-510.74,0.00011287,2]
[353974411,1740171052491,-500.0,0.00011287,2]
[353974412,1740171052501,-570.21,0.00011287,2]
[353974413,1740171052511,-500.0,0.00011287,2]
[353974414,1740171052520,-500.0,0.00011287,2]
[353974415,1740171052530,-737.42,0.00011287,2]
[353974416,1740171052539,-500.0,0.00011287,2]
[353974417,1740171052549,-576.65,0.00011287,2]
[353974418,1740171052559,-500.0,0.00011287,2]
[353974419,1740171052569,-717.99,0.00011287,2]
[353974420,1740171052578,-500.0,0.00011287,2]
[353974421,1740171052588,-758.02,0.00011287,2]
[353974422,1740171052598,-500.0,0.00011287,2]
[353974423,1740171052608,-500.0,0.00011287,2]
[353974424,1740171052618,-500.0,0.00011287,2]
[353974425,1740171052628,-500.0,0.00011287,2]
[353974426,1740171052637,-516.42,0.00011287,2]
[353974427,1740171052647,-500.0,0.00011287,2]
[353974428,1740171052657,-643.15870527,0.00011287,2]
[353974429,1740171052667,-500.0,0.00011287,2]
[353974430,1740171052678,-628.36,0.00011287,2]
[353974431,1740171052688,-500.0,0.00011287,2]
[353974432,1740171052698,-500.0,0.00011287,2]
[353974433,1740171052708,-500.0,0.00011287,2]
[353974434,1740171052718,-602.18,0.00011287,2]
[353974435,1740171052727,-547.66932071,0.00011287,2]
[353974436,1740171052739,-500.0,0.00011287,2]
[353974437,1740171052749,-549.57,0.00011287,2]
[353974438,1740171052759,-594.93,0.00011287,2]
[353974439,1740171052769,-500.0,0.00011287,2]
[353974440,1740171052779,-510.35,0.00011287,2]
[353974441,1740171052789,-500.0,0.00011287,2]
[353974442,1740171052799,-500.0,0.00011287,2]
[353974443,1740171052809,-828.44,0.00011287,2]
[353974444,1740171052819,-500.0,0.00011287,2]
[353974445,1740171052828,-500.0,0.00011287,2]
[353974446,1740171052837,-999.93,0.00011287,2]
[353974447,1740171052847,-500.0,0.00011287,2]
[353974448,1740171052856,-529.44,0.00011287,2]
[353974449,1740171052865,-1000.0,0.00011287,2]
[353974450,1740171052875,-514.03,0.00011287,2]
[353974451,1740171052884,-500.0,0.00011287,2]
[353974452,1740171052893,-872.75,0.00011287,2]
[353974453,1740171052903,-500.0,0.00011287,2]
[353974454,1740171052913,-925.13,0.00011287,2]
[353974455,1740171052922,-664.18,0.00011287,2]
[353974456,1740171052932,-1061.9,0.00011287,2]
[353974457,1740171052941,-500.0,0.00011287,2]
[353974458,1740171052950,-500.0,0.00011287,2]
[353974459,1740171052959,-1366.7,0.00011287,2]
[353974460,1740171052968,-643.85,0.00011287,2]
[353974461,1740171052980,-1157.67,0.00011287,2]
[353974462,1740171052989,-500.0,0.00011287,2]
[353974463,1740171053001,-728.91,0.00011287,2]
[353974464,1740171053013,-913.3,0.00011287,2]
[353974465,1740171053022,-500.0,0.00011287,2]
[353974466,1740171053032,-500.0,0.00011287,2]
[353974467,1740171053042,-586.15,0.00011287,2]
[353974468,1740171053052,-500.0,0.00011287,2]
[353974469,1740171053062,-997.55,0.00011287,2]
[353974470,1740171053071,-500.0,0.00011287,2]
[353974471,1740171053081,-791.3,0.00011287,2]
[353974472,1740171053091,-632.04,0.00011287,2]
[353974473,1740171053101,-500.0,0.00011287,2]
[353974474,1740171053110,-693.28,0.00011287,2]
[353974475,1740171053119,-500.0,0.00011287,2]
[353974476,1740171053129,-500.0,0.00011287,2]
[353974477,1740171053138,-818.59,0.00011287,2]
[353974478,1740171053148,-500.0,0.00011287,2]
[353974479,1740171053157,-703.51,0.00011287,2]
[353974480,1740171053167,-592.44,0.00011287,2]
[353974481,1740171053177,-500.0,0.00011287,2]
[353974482,1740171053187,-500.0,0.00011287,2]
[353974483,1740171053197,-500.0,0.00011287,2]
[353974484,1740171053206,-500.0,0.00011287,2]
[353974485,1740171053216,-571.44,0.00011287,2]
[353974486,1740171053226,-500.0,0.00011287,2]
[353974487,1740171053237,-500.0,0.00011287,2]
[353974488,1740171053247,-500.0,0.00011287,2]
[353974489,1740171053257,-838.19,0.00011287,2]
[353974490,1740171053267,-720.06,0.00011287,2]
[353974491,1740171053276,-500.0,0.00011287,2]
[353974492,1740171053286,-500.0,0.00011287,2]
[353974493,1740171053296,-931.04,0.00011287,2]
[353974494,1740171053305,-500.0,0.00011287,2]
[353974495,1740171053314,-500.0,0.00011287,2]
[353974496,1740171053324,-500.0,0.00011287,2]
[353974497,1740171053333,-500.0,0.00011287,2]
[353974498,1740171053343,-1272.71,0.00011287,2]
[353974499,1740171053353,-632.53,0.00011367,2]
[353974500,1740171053363,-838.98,0.00011367,2]
[353974501,1740171053372,-500.0,0.00011367,2]
[353974502,1740171053381,-500.0,0.00011367,2]
[353974503,1740171053391,-649.17,0.00011367,2]
[353974504,1740171053401,-609.92,0.00011367,2]
[353974505,1740171053411,-500.0,0.00011367,2]
[353974506,1740171053420,-734.31,0.00011367,2]
[353974507,1740171053430,-903.74,0.00011367,2]
[353974508,1740171053440,-500.0,0.00011367,2]
[353974509,1740171053450,-500.0,0.00011367,2]
[353974510,1740171053633,-774.49,0.00011367,2]
[353974511,1740171053647,-557.01,0.00011367,2]
[353974512,1740171053657,-601.4,0.00011367,2]
[353974513,1740171053667,-500.0,0.00011367,2]
[353974514,1740171053677,-584.44,0.00011367,2]
[353974515,1740171053687,-739.21,0.00011367,2]
[353974516,1740171053697,-1290.21,0.00011367,2]
[353974517,1740171053707,-500.0,0.00011367,2]
[353974518,1740171053717,-500.0,0.00011367,2]
[353974519,1740171053727,-911.81,0.00011367,2]
[353974520,1740171053737,-500.0,0.00011367,2]
[353974521,1740171053746,-500.0,0.00011367,2]
[353974522,1740171053756,-721.51,0.00011367,2]
[353974523,1740171053765,-500.0,0.00011367,2]
[353974524,1740171053775,-1006.19,0.00011367,2]
[353974525,1740171053785,-567.1,0.00011367,2]
[353974526,1740171053795,-1021.87,0.00011367,2]
[353974527,1740171053804,-641.22,0.00011367,2]
[353974528,1740171053814,-500.0,0.00011367,2]
[353974529,1740171053824,-500.0,0.00011367,2]
[353974530,1740171053834,-500.0,0.00011368,2]
[353974531,1740171053844,-500.0,0.00011368,2]
[353974532,1740171053854,-500.0,0.00011368,2]
[353974533,1740171053865,-515.4,0.00011368,2]
[353974534,1740171053875,-545.11,0.00011368,2]
[353974535,1740171053887,-500.0,0.00011368,2]
[353974536,1740171053898,-396.53519668,0.00011368,2]
[353974537,1740171053907,-500.0,0.00011368,2]
[353974538,1740171053917,-500.0,0.00011368,2]
[353974539,1740171053927,-500.0,0.00011368,2]
[353974540,1740171053937,-500.0,0.00011368,2]
[353974541,1740171053947,-500.0,0.00011368,2]
[353974542,1740171053957,-1213.59,0.00011368,2]
[353974543,1740171053967,-500.0,0.00011368,2]
[353974544,1740171053978,-1530.25,0.00011368,2]
[353974545,1740171053990,-1165.42,0.00011368,2]
[353974546,1740171054001,-500.0,0.00011368,2]
[353974547,1740171054013,-500.0,0.00011368,2]
[353974548,1740171054022,-1202.17,0.00011368,2]
[353974549,1740171054033,-980.68,0.00011368,2]
[353974550,1740171054043,-388.485905,0.00011368,2]
[353974551,1740171054054,-787.96,0.00011368,2]
[353974552,1740171054065,-715.35,0.00011368,2]
[353974553,1740171054075,-4732.39,0.00011368,2]
[353974554,1740171054086,-825.04,0.00011368,2]
[353974555,1740171054095,-500.0,0.00011368,2]
[353974556,1740171054105,-781.86,0.00011368,2]
[353974557,1740171054115,-456.75589,0.00011368,2]
[353974558,1740171054124,-500.0,0.00011368,2]
[353974559,1740171054133,-968.39,0.00011368,2]
[353974560,1740171054143,-500.0,0.00011368,2]
[353974561,1740171054152,-1024.15,0.00011368,2]
[353974562,1740171054162,-500.0,0.00011368,2]
[353974563,1740171054172,-641.54,0.00011368,2]
[353974564,1740171054181,-983.5,0.00011368,2]
[353974565,1740171054191,-521.8,0.00011368,2]
[353974566,1740171054201,-922.66,0.00011368,2]
[353974567,1740171054211,-1051.72,0.00011368,2]
[353974568,1740171054220,-500.0,0.00011368,2]
[353974569,1740171054230,-960.42,0.00011368,2]
[353974570,1740171054240,-909.2,0.00011368,2]
[353974571,1740171054250,-699.01,0.00011368,2]
[353974572,1740171054260,-1134.55,0.00011368,2]
[353974573,1740171054270,-2042.37,0.00011368,2]
[353974574,1740171054280,-770.62,0.00011368,2]
[353974575,1740171054289,-500.0,0.00011368,2]
[353974576,1740171054299,-500.0,0.00011368,2]
[353974577,1740171054308,-833.6,0.00011368,2]
[353974578,1740171054318,-500.0,0.00011368,2]
[353974579,1740171054328,-691.53,0.00011368,2]
[353974580,1740171054338,-1037.34,0.00011368,2]
[353974581,1740171054347,-500.0,0.00011368,2]
[353974582,1740171054357,-500.0,0.00011368,2]
[353974583,1740171054367,-500.0,0.00011368,2]
[353974584,1740171054376,-698.57,0.00011368,2]
[353974585,1740171054387,-1368.34,0.00011368,2]
[353974586,1740171054397,-500.0,0.00011368,2]
[353974587,1740171054406,-697.57,0.00011368,2]
[353974588,1740171054415,-500.0,0.00011368,2]
[353974589,1740171054425,-1063.71,0.00011368,2]
[353974590,1740171054435,-644.57,0.00011368,2]
[353974591,1740171054445,-1210.76,0.00011368,2]
[353974592,1740171054455,-916.99,0.00011368,2]
[353974593,1740171054464,-737.32,0.00011368,2]
[353974594,1740171054474,-500.0,0.00011368,2]
[353974595,1740171054485,-1114.97,0.00011368,2]
[353974596,1740171054495,-500.0,0.00011368,2]
[353974597,1740171054505,-841.42,0.00011368,2]
[353974598,1740171054516,-500.0,0.00011368,2]
[353974599,1740171054527,-2085.19,0.00011368,2]
[353974600,1740171054536,-500.0,0.00011368,2]
[353974601,1740171054546,-1025.17,0.00011368,2]
[353974602,1740171054556,-500.0,0.00011368,2]
[353974603,1740171054567,-1253.06,0.00011368,2]
[353974604,1740171054577,-500.0,0.00011368,2]
[353974605,1740171054587,-725.46,0.00011368,2]
[353974606,1740171054597,-828.59,0.00011368,2]
[353974607,1740171054607,-1071.25,0.00011368,2]
[353974608,1740171054617,-663.69,0.00011368,2]
[353974609,1740171054626,-1377.64,0.00011368,2]
[353974610,1740171054636,-500.0,0.00011368,2]
[353974611,1740171054647,-500.0,0.00011368,2]
[353974612,1740171054656,-540.68,0.00011368,2]
[353974613,1740171054666,-500.0,0.00011368,2]
[353974614,1740171054676,-500.0,0.00011368,2]
[353974615,1740171054686,-500.0,0.00011368,2]
[353974616,1740171054696,-500.0,0.00011369,2]
[353974617,1740171054706,-500.0,0.00011369,2]
[353974618,1740171054715,-948.42,0.00011369,2]
[353974619,1740171054725,-500.0,0.00011369,2]
[353974620,1740171054736,-500.0,0.00011369,2]
[353974621,1740171054746,-500.0,0.00011369,2]
[353974622,1740171054755,-548.39,0.00011369,2]
[353974623,1740171054765,-500.0,0.00011369,2]
[353974624,1740171054775,-500.0,0.00011369,2]
[353974625,1740171054784,-500.0,0.00011369,2]
[353974626,1740171054794,-500.0,0.00011369,2]
[353974627,1740171054803,-500.0,0.00011369,2]
[353974628,1740171054813,-500.0,0.00011369,2]
[353974629,1740171054822,-500.0,0.00011369,2]
[353974630,1740171054832,-500.0,0.00011369,2]
[353974631,1740171054842,-370.35318539,0.00011369,2]
[353974632,1740171054851,-500.0,0.00011369,2]
[353974633,1740171054861,-500.0,0.00011369,2]
[353974634,1740171054871,-500.0,0.00011369,2]
[353974635,1740171054882,-321.29548477,0.00011369,2]
[353974636,1740171054892,-500.0,0.00011369,2]
[353974637,1740171054901,-500.0,0.00011369,2]
[353974638,1740171054911,-509.14,0.00011369,2]
[353974639,1740171054920,-500.0,0.00011369,2]
[353974640,1740171054929,-500.0,0.00011369,2]
[353974641,1740171054939,-532.03,0.00011369,2]
[353974642,1740171054949,-500.0,0.00011369,2]
[353974643,1740171054958,-500.0,0.00011369,2]
[353974644,1740171054967,-895.54,0.00011369,2]
[353974645,1740171054977,-500.0,0.00011369,2]
[353974646,1740171054987,-500.0,0.00011369,2]
[353974647,1740171054997,-723.86,0.00011369,2]
[353974648,1740171055007,-500.0,0.00011369,2]
[353974649,1740171055021,-500.0,0.00011369,2]
[353974650,1740171055031,-569.43,0.00011369,2]
[353974651,1740171055042,-721.9,0.00011369,2]
[353974652,1740171055051,-604.3,0.00011369,2]
[353974653,1740171055060,-500.0,0.00011369,2]
[353974654,1740171055070,-796.7,0.00011369,2]
[353974655,1740171055080,-500.0,0.00011369,2]
[353974656,1740171055091,-500.0,0.00011369,2]
[353974657,1740171055102,-570.06,0.00011369,2]
[353974658,1740171055111,-548.12,0.00011369,2]
[353974659,1740171055120,-547.69,0.00011369,2]
[353974660,1740171055129,-500.0,0.00011369,2]
[353974661,1740171055139,-682.11,0.00011369,2]
[353974662,1740171055149,-500.0,0.00011369,2]
[353974663,1740171055159,-530.17,0.00011369,2]
[353974664,1740171055168,-500.0,0.00011369,2]
[353974665,1740171055179,-595.9,0.00011369,2]
[353974666,1740171055188,-500.0,0.00011369,2]
[353974667,1740171055198,-500.0,0.00011369,2]
[353974668,1740171055207,-500.0,0.00011369,2]
[353974669,1740171055216,-608.63,0.00011369,2]
[353974670,1740171055226,-500.0,0.00011369,2]
[353974671,1740171055236,-500.0,0.00011369,2]
[353974672,1740171055245,-500.0,0.00011369,2]
[353974673,1740171055255,-500.0,0.00011369,2]
[353974674,1740171055264,-528.72,0.00011369,2]
[353974675,1740171055274,-500.0,0.00011369,2]
[353974676,1740171055284,-500.0,0.00011369,2]
[353974677,1740171055293,-500.0,0.00011369,2]
[353974678,1740171055303,-500.0,0.00011369,2]
[353974679,1740171055312,-500.0,0.00011369,2]
[353974680,1740171055322,-500.0,0.00011369,2]
[353974681,1740171055332,-596.32,0.00011369,2]
[353974682,1740171055341,-500.0,0.00011369,2]
[353974683,1740171055350,-608.08,0.00011369,2]
[353974684,1740171055359,-500.0,0.00011369,2]
[353974685,1740171055369,-500.0,0.00011369,2]
[353974686,1740171055378,-500.0,0.00011369,2]
[353974687,1740171055387,-500.0,0.00011369,2]
[353974688,1740171055396,-725.21,0.00011369,2]
[353974689,1740171055406,-500.0,0.00011369,2]
[353974690,1740171055415,-736.61,0.00011369,2]
[353974691,1740171055425,-500.0,0.00011369,2]
[353974692,1740171055434,-500.0,0.00011369,2]
[353974693,1740171055445,-500.0,0.00011369,2]
[353974694,1740171055455,-500.0,0.00011369,2]
[353974695,1740171055464,-500.0,0.00011369,2]
[353974696,1740171055474,-500.0,0.00011369,2]
[353974697,1740171055485,-500.0,0.00011369,2]
[353974698,1740171055494,-500.0,0.00011369,2]
[353974699,1740171055504,-595.1,0.00011369,2]
[353974700,1740171055514,-500.0,0.00011369,2]
[353974701,1740171055523,-500.0,0.00011369,2]
[353974702,1740171055532,-597.25,0.00011369,2]
[353974703,1740171055542,-500.0,0.00011369,2]
[353974704,1740171055553,-500.0,0.00011369,2]
[353974705,1740171055563,-789.82,0.00011369,2]
[353974706,1740171055573,-500.0,0.00011369,2]
[353974707,1740171055583,-820.97,0.00011369,2]
[353974708,1740171055593,-500.0,0.00011369,2]
[353974709,1740171055602,-314.36700217,0.00011369,2]
[353974710,1740171055612,-500.0,0.00011369,2]
[353974711,1740171055622,-638.4,0.00011369,2]
[353974712,1740171055631,-500.0,0.00011369,2]
[353974713,1740171055641,-500.0,0.00011369,2]
[353974714,1740171055651,-602.07,0.00011369,2]
[353974715,1740171055661,-534.75,0.00011369,2]
[353974716,1740171055671,-591.74,0.00011369,2]
[353974717,1740171055681,-500.0,0.00011369,2]
[353974718,1740171055691,-594.45,0.00011369,2]
[353974719,1740171055700,-556.78,0.00011369,2]
[353974720,1740171055710,-543.99,0.00011369,2]
[353974721,1740171055720,-500.0,0.00011369,2]
[353974722,1740171055730,-500.0,0.00011369,2]
[353974723,1740171055739,-500.0,0.00011369,2]
[353974724,1740171055750,-561.34,0.00011369,2]
[353974725,1740171055759,-656.67,0.00011369,2]
[353974726,1740171055769,-500.0,0.00011369,2]
[353974727,1740171055780,-500.0,0.00011369,2]
[353974728,1740171055789,-510.74,0.00011369,2]
[353974729,1740171055798,-500.0,0.00011369,2]
[353974730,1740171055808,-570.21,0.00011369,2]
[353974731,1740171055818,-500.0,0.00011369,2]